bitfinex/quotes_SOLUSD_20250212
["timestamp","ask_amount","ask_price","bid_price","bid_amount"]
[1739333755674,0.03,195.21,195.2,69.52131859]
[1739333757599,0.03,195.21,195.2,39.15611356]
[1739333757896,0.03,195.21,195.2,50.55802611]
[1739333759898,4.096,195.31,195.24,0.50196]
[1739333760194,4.096,195.31,195.27,16.13712879]
[1739333761201,4.096,195.31,195.25,15.76065879]
[1739333761496,15.76065879,195.29,195.22,15.76065879]
[1739333761691,15.76065879,195.29,195.23,0.12549]
[1739333761893,15.76065879,195.3,195.23,15.88614879]
[1739333762092,15.76065879,195.27,195.21,15.76065879]
[1739333762396,15.76065879,195.23,195.17,15.76065879]
[1739333762581,15.76065879,195.23,195.18,13.53733853]
[1739333762787,15.76065879,195.24,195.18,29.29799732]
[1739333763181,15.76065879,195.24,195.18,13.53733853]
[1739333763599,5.6299,195.25,195.2,29.29799732]
[1739333763805,4.0966,195.28,195.22,29.54897732]
[1739333763986,4.0966,195.28,195.23,15.76065879]
[1739333764179,19.85725879,195.28,195.22,13.78831853]
[1739333764379,15.76065879,195.27,195.22,13.78831853]
[1739333764588,15.76065879,195.26,195.19,15.88614879]
[1739333764876,15.76065879,195.25,195.2,13.78831853]
[1739333765085,15.76065879,195.26,195.2,29.54897732]
[1739333765585,19.85795879,195.25,195.2,13.78831853]
[1739333766879,19.85795879,195.25,195.19,15.76065879]
[1739333767106,15.76065879,195.24,195.17,15.76065879]
[1739333767290,19.85795879,195.25,195.18,29.54897732]
[1739333767692,19.85795879,195.25,195.2,0.063]
[1739333768381,4.0973,195.25,195.21,0.12549]
[1739333769000,19.85795879,195.25,195.2,0.063]
[1739333769298,15.76065879,195.24,195.2,0.063]
[1739333770085,4.0977,195.23,195.2,0.063]
[1739333772029,4.0973,195.25,195.21,16.13712879]
[1739333772186,4.0971,195.26,195.22,15.76065879]
[1739333772388,4.0971,195.26,195.23,0.12549]
[1739333772999,82.5,195.27,195.25,0.12549]
[1739333773213,15.79065879,195.31,195.25,0.12549]
[1739333773214,4.0966,195.29,195.25,0.12549]
[1739333774807,15.76065879,195.27,195.2,15.82365879]
[1739333775104,15.76065879,195.22,195.2,0.063]
[1739333776288,4.0981,195.21,195.2,0.063]
[1739333777682,4.0977,195.23,195.2,0.063]
[1739333778102,19.85835879,195.23,195.2,0.063]
[1739333778287,15.76065879,195.22,195.2,0.063]
[1739333779005,19.85835879,195.23,195.2,0.063]
[1739333779812,15.76065879,195.21,195.2,0.063]
[1739333780694,15.76065879,195.21,195.13,79.74433206]
[1739333780695,15.76065879,195.21,195.13,63.98367327]
[1739333780893,15.76065879,195.17,195.13,63.98367327]
[1739333781882,4.0992,195.16,195.14,0.12549]
[1739333782088,4.0989,195.17,195.14,0.12549]
[1739333782500,4.0989,195.17,195.14,15.88614879]
[1739333782695,19.85875879,195.21,195.16,0.12549]
[1739333782904,4.0981,195.21,195.16,15.88614879]
[1739333783106,4.0981,195.21,195.18,0.12549]
[1739333784004,4.0977,195.23,195.18,0.12549]
[1739333784503,4.0977,195.23,195.18,13.91380853]
[1739333784691,4.0977,195.23,195.2,0.12549]
[1739333785590,4.0973,195.25,195.2,0.12549]
[1739333786121,19.85795879,195.25,195.2,0.12549]
[1739333786319,15.76065879,195.24,195.2,0.12549]
[1739333786522,14.3405,195.25,195.14,15.76065879]
[1739333786706,15.76065879,195.21,195.15,13.91380853]
[1739333787427,15.76065879,195.18,195.15,0.12549]
[1739333787720,15.76065879,195.16,195.11,0.063]
[1739333788025,15.76065879,195.15,195.11,0.18849]
[1739333789115,4.0996,195.14,195.11,0.18849]
[1739333791235,15.76065879,195.16,195.11,0.18849]
[1739333791636,15.76065879,195.18,195.11,15.94914879]
[1739333792434,15.76065879,195.17,195.11,0.18849]
[1739333793033,4.0992,195.16,195.11,0.18849]
[1739333793230,19.85985879,195.16,195.11,0.063]
[1739333793536,15.76065879,195.14,195.11,0.063]
[1739333794041,157.95985879,195.16,195.11,0.18849]
[1739333794241,142.1992,195.16,195.12,15.76065879]
[1739333794415,142.1992,195.16,195.11,0.18849]
[1739333794826,157.95985879,195.16,195.11,0.063]
[1739333795128,19.86025879,195.14,195.11,0.063]
[1739333796711,15.76065879,195.12,195.11,0.063]
[1739333797631,15.76065879,195.13,195.11,0.063]
[1739333798422,4.1,195.12,195.11,0.063]
[1739333798702,4.0997,195.14,195.11,0.063]
[1739333798913,19.86035879,195.14,195.11,0.063]
[1739333800731,4.0997,195.14,195.11,0.063]
[1739333801032,82.5,195.18,195.11,0.063]
[1739333801033,19.85955879,195.17,195.12,0.12549]
[1739333801833,4.0989,195.17,195.12,16.13712879]
[1739333802212,82.5,195.18,195.14,0.37647]
[1739333802822,86.5988,195.18,195.14,0.37647]
[1739333803017,102.35945879,195.18,195.14,0.37647]
[1739333803222,15.76065879,195.17,195.11,0.18849]
[1739333803511,102.35945879,195.18,195.11,15.82365879]
[1739333803722,86.5988,195.18,195.12,29.54897732]
[1739333804544,4.0988,195.18,195.13,0.12549]
[1739333804719,4.0981,195.21,195.17,13.53733853]
[1739333805526,15.76065879,195.2,195.17,0.12549]
[1739333805719,15.76065879,195.18,195.11,15.82365879]
[1739333805918,15.76065879,195.17,195.11,0.063]
[1739333806232,15.76065879,195.17,195.12,13.66282853]
[1739333806805,4.0992,195.16,195.12,13.66282853]
[1739333807646,4.0989,195.18,195.14,0.25098]
[1739333807851,4.0989,195.18,195.14,13.66282853]
[1739333808351,4.0989,195.18,195.14,0.25098]
[1739333808640,19.85955879,195.18,195.14,0.25098]
[1739333810926,4.0989,195.18,195.14,13.66282853]
[1739333811320,4.0989,195.18,195.15,0.12549]
[1739333811507,4.0989,195.18,195.16,0.12549]
[1739333812916,153.86065879,195.2,195.16,0.12549]
[1739333813116,4.0985,195.19,195.16,0.12549]
[1739333816541,15.76065879,195.18,195.13,0.063]
[1739333816918,15.76065879,195.18,195.13,13.72582853]
[1739333817320,30.10555879,195.19,195.13,13.72582853]
[1739333817543,4.0985,195.19,195.14,13.53733853]
[1739333817745,4.0985,195.19,195.15,16.01163879]
[1739333818039,4.0985,195.19,195.17,0.12549]
[1739333818756,0.03,195.2,195.17,0.12549]
[1739333819220,15.79065879,195.2,195.17,0.12549]
[1739333819841,0.03,195.2,195.17,0.12549]
[1739333820022,0.03,195.2,195.17,0.25098]
[1739333820227,0.03,195.2,195.19,0.12549]
[1739333824449,0.03,195.2,195.17,15.88614879]
[1739333824657,15.79065879,195.2,195.13,15.82365879]
[1739333824943,15.76065879,195.18,195.13,0.063]
[1739333825353,4.0989,195.17,195.14,0.12549]
[1739333826458,19.85955879,195.17,195.13,0.31398]
[1739333827731,19.85955879,195.17,195.13,0.18849]
[1739333827936,15.76065879,195.16,195.13,0.18849]
[1739333828258,14.40889461,195.16,195.13,0.18849]
[1739333829064,14.40889461,195.16,195.13,0.063]
[1739333829370,4.0994,195.15,195.13,0.063]
[1739333830333,19.86005879,195.15,195.13,0.063]
[1739333831168,4.0994,195.15,195.13,0.063]
[1739333832545,4.0992,195.16,195.13,0.18849]
[1739333832749,4.0987,195.18,195.14,0.12549]
[1739333833153,82.5,195.19,195.16,0.12549]
[1739333833539,4.0986,195.19,195.16,0.12549]
[1739333836159,4.0986,195.19,195.16,13.66282853]
[1739333836655,0.03,195.2,195.17,0.12549]
[1739333836958,0.03,195.2,195.18,0.12549]
[1739333838360,0.03,195.2,195.18,13.66282853]
[1739333838951,0.03,195.2,195.19,0.12549]
[1739333839157,0.03,195.2,195.19,29.42348732]
[1739333840245,0.03,195.2,195.19,13.66282853]
[1739333841457,0.03,195.2,195.17,6.0004]
[1739333841848,0.03,195.2,195.16,0.063]
[1739333842051,15.79065879,195.2,195.16,0.063]
[1739333842342,4.0985,195.19,195.18,0.12549]
[1739333843464,19.85915879,195.19,195.16,0.063]
[1739333843863,15.76065879,195.17,195.16,0.063]
[1739333845262,15.76065879,195.17,195.13,0.063]
[1739333845564,19.86025879,195.14,195.11,0.063]
[1739333845767,35.76065879,195.12,195.11,0.063]
[1739333846350,35.76065879,195.12,195.03,6.0004]
[1739333846665,15.76065879,195.1,195.01,1.5154]
[1739333846869,31.52131758,195.1,195.09,37.34691394]
[1739333847042,31.52131758,195.1,195.09,2.30991394]
[1739333847559,31.52131758,195.1,195.0,13.60033853]
[1739333847560,4.1006,195.09,195.0,0.063]
[1739333847756,15.76065879,195.04,195.0,0.063]
[1739333847958,15.76065879,195.03,195.0,0.063]
[1739333848153,15.76065879,195.01,195.0,0.063]
[1739333849677,19.86295879,195.01,195.0,0.063]
[1739333851170,35.62361758,195.01,195.0,0.063]
[1739333852568,21.0,194.98,194.96,0.063]
[1739333852769,36.76065879,194.97,194.94,0.063]
[1739333852968,15.76065879,194.95,194.94,0.063]
[1739333853775,19.35125879,194.95,194.94,0.063]
[1739333853947,21.35125879,194.95,194.93,0.063]
[1739333854146,16.76065879,194.94,194.93,0.063]
[1739333855049,15.76065879,194.94,194.93,0.063]
[1739333855575,20.0,194.92,194.91,0.063]
[1739333855754,39.35185879,194.92,194.91,0.0001]
[1739333855963,40.35185879,194.92,194.91,0.0001]
[1739333856654,41.35185879,194.92,194.91,0.0001]
[1739333857163,57.11251758,194.92,194.91,0.0001]
[1739333857366,58.73171758,194.92,194.91,0.0001]
[1739333857549,20.0,194.88,194.85,0.063]
[1739333857747,19.35295879,194.86,194.85,0.063]
[1739333858052,82.5,194.85,194.84,0.063]
[1739333858259,98.26065879,194.85,194.84,0.0001]
[1739333859183,99.26065879,194.85,194.84,0.0001]
[1739333860067,21.35315879,194.85,194.84,0.0001]
[1739333860476,20.35315879,194.85,194.84,0.0001]
[1739333860779,21.35315879,194.85,194.84,0.0001]
[1739333861981,20.35315879,194.85,194.84,0.0001]
[1739333862480,21.0,194.83,194.82,0.0001]
[1739333862684,36.76065879,194.83,194.82,0.0001]
[1739333863052,35.76065879,194.83,194.82,0.0001]
[1739333863259,20.0,194.83,194.82,0.0001]
[1739333864076,23.5928,194.83,194.82,0.0001]
[1739333864666,39.35345879,194.83,194.82,0.0001]
[1739333865981,40.35345879,194.83,194.82,0.0001]
[1739333868202,57.11411758,194.83,194.82,0.0001]
[1739333868368,2.12549,194.81,194.8,0.0001]
[1739333868698,33.64680758,194.81,194.8,0.0001]
[1739333870502,52.66000758,194.81,194.8,0.0001]
[1739333870795,21.0,194.78,194.77,0.0001]
[1739333870961,37.76065879,194.78,194.77,0.0001]
[1739333871162,36.76065879,194.78,194.77,0.0001]
[1739333871480,37.88614879,194.78,194.77,0.0001]
[1739333872688,41.47984879,194.78,194.77,0.0001]
[1739333872866,40.47984879,194.78,194.77,0.0001]
[1739333873056,41.47984879,194.78,194.77,0.0001]
[1739333873884,40.47984879,194.78,194.77,0.0001]
[1739333874763,15.76065879,194.71,194.7,0.063]
[1739333876779,19.35565879,194.71,194.7,0.063]
[1739333878681,20.35565879,194.71,194.7,0.063]
[1739333878878,19.35565879,194.71,194.7,0.063]
[1739333881108,20.35565879,194.71,194.7,0.063]
[1739333881772,19.35565879,194.71,194.7,0.063]
[1739333883979,19.35565879,194.71,194.66,0.063]
[1739333883980,15.76065879,194.67,194.66,0.063]
[1739333884883,15.76065879,194.67,194.65,0.063]
[1739333884884,16.76065879,194.67,194.65,0.063]
[1739333885066,21.35665879,194.66,194.65,0.0001]
[1739333885266,257.50214879,194.66,194.65,0.0001]
[1739333885472,36.90214879,194.66,194.65,0.0001]
[1739333885771,2.12549,194.65,194.64,0.0001]
[1739333885981,17.88614879,194.65,194.64,0.0001]
[1739333886584,33.55712879,194.65,194.63,0.063]
[1739333886792,16.88614879,194.64,194.63,0.0001]
[1739333887181,20.48244879,194.64,194.63,0.0001]
[1739333890600,19.35695879,194.64,194.63,0.0001]
[1739333896406,21.48244879,194.64,194.63,0.0001]
[1739333897601,21.73342879,194.64,194.63,0.0001]
[1739333897797,21.73342879,194.64,194.57,0.03]
[1739333897798,1.0,194.59,194.57,0.0001]
[1739333898000,18.13712879,194.58,194.57,0.0001]
[1739333898389,33.55712879,194.58,194.57,0.0001]
[1739333898915,15.88614879,194.58,194.57,0.0001]
[1739333899081,15.76065879,194.58,194.57,0.0001]
[1739333899680,19.35805879,194.58,194.57,0.0001]
[1739333900419,34.77805879,194.58,194.57,0.0001]
[1739333900721,19.35805879,194.58,194.57,0.0001]
[1739333901216,15.76065879,194.58,194.57,0.0001]
[1739333901423,19.35805879,194.58,194.57,0.0001]
[1739333901800,34.77805879,194.58,194.57,0.0001]
[1739333902124,35.90354879,194.58,194.57,0.0001]
[1739333902420,37.15452879,194.58,194.57,0.0001]
[1739333905829,50.56637732,194.58,194.57,0.0001]
[1739333906546,1.37647,194.54,194.47,8.0427]
[1739333906744,15.76065879,194.48,194.47,8.0427]
[1739333906917,15.76065879,194.48,194.46,0.03]
[1739333907229,15.76065879,194.47,194.46,0.03]
[1739333907609,19.36015879,194.47,194.46,0.03]
[1739333908308,0.12549,194.46,194.42,7.7178]
[1739333908511,15.76065879,194.43,194.42,7.7178]
[1739333908818,15.76065879,194.43,194.42,6.1891]
[1739333909225,15.76065879,194.44,194.42,6.1891]
[1739333909427,15.76065879,194.46,194.42,6.1891]
[1739333909607,17.42,194.51,194.42,6.1891]
[1739333909608,15.76065879,194.48,194.42,6.1891]
[1739333909814,3.5996,194.47,194.42,6.1891]
[1739333910206,15.76065879,194.48,194.42,21.94975879]
[1739333910411,20.0,194.46,194.42,21.94975879]
[1739333910611,20.0,194.46,194.42,6.1891]
[1739333910832,15.76065879,194.46,194.42,6.1891]
[1739333911532,15.76065879,194.43,194.42,6.1891]
[1739333912211,15.76065879,194.43,194.38,1.5287]
[1739333912408,15.76065879,194.42,194.38,1.5287]
[1739333912614,15.76065879,194.41,194.38,1.5287]
[1739333913729,3.6008,194.4,194.38,1.5287]
[1739333913938,3.6008,194.4,194.37,6.6604]
[1739333913939,19.36145879,194.4,194.37,6.6604]
[1739333914952,3.6008,194.4,194.37,6.6604]
[1739333915638,3.6008,194.4,194.37,0.03]
[1739333916155,3.6006,194.42,194.37,0.03]
[1739333916368,3.6002,194.44,194.38,15.76065879]
[1739333916652,3.5999,194.45,194.4,15.76065879]
[1739333916811,3.5999,194.45,194.39,15.76065879]
[1739333917735,3.5993,194.48,194.41,1.5729]
[1739333918035,20.0,194.47,194.44,15.76065879]
[1739333918216,3.5993,194.48,194.44,15.76065879]
[1739333918822,15.76065879,194.49,194.42,29.17250732]
[1739333919332,35.76065879,194.48,194.42,29.17250732]
[1739333919651,35.76065879,194.48,194.42,13.41184853]
[1739333919821,19.35955879,194.5,194.43,15.76065879]
[1739333920436,3.5989,194.5,194.44,15.76065879]
[1739333920627,20.0,194.49,194.45,15.76065879]
[1739333921026,20.0,194.49,194.44,15.79065879]
[1739333921746,1.25098,194.56,194.47,15.76065879]
[1739333921747,3.5984,194.53,194.47,15.76065879]
[1739333921954,138.1,194.52,194.47,15.76065879]
[1739333922126,138.1,194.52,194.49,15.76065879]
[1739333922634,141.6982,194.55,194.51,15.76065879]
[1739333923033,3.5982,194.55,194.51,15.76065879]
[1739333923223,138.1,194.56,194.53,15.76065879]
[1739333923437,138.1,194.56,194.52,15.76065879]
[1739333923619,141.6978,194.56,194.52,15.76065879]
[1739333923934,138.1,194.56,194.52,15.76065879]
[1739333924136,141.6978,194.56,194.51,29.17250732]
[1739333924334,157.45845879,194.56,194.5,1.5729]
[1739333924523,157.45845879,194.56,194.51,15.76065879]
[1739333924524,141.6978,194.56,194.51,15.76065879]
[1739333924834,141.6978,194.56,194.5,17.33355879]
[1739333925141,141.6978,194.56,194.5,1.5729]
[1739333925331,157.45845879,194.56,194.5,1.5729]
[1739333925858,15.76065879,194.54,194.47,15.76065879]
[1739333926038,153.86065879,194.53,194.46,22.39105879]
[1739333926433,138.1,194.53,194.49,15.76065879]
[1739333926959,141.6984,194.53,194.49,15.76065879]
[1739333927258,141.6984,194.53,194.49,13.41184853]
[1739333927757,141.6984,194.53,194.48,15.76065879]
[1739333927921,138.1,194.52,194.47,15.76065879]
[1739333928127,15.76065879,194.51,194.46,6.6304]
[1739333928437,153.86065879,194.52,194.46,6.6304]
[1739333928647,138.1,194.52,194.46,22.39105879]
[1739333928831,138.1,194.52,194.47,29.17250732]
[1739333929037,138.1,194.52,194.5,15.76065879]
[1739333929684,138.1,194.52,194.49,15.76065879]
[1739333931430,138.1,194.52,194.51,15.76065879]
[1739333931668,138.1,194.57,194.52,13.41184853]
[1739333931961,3.5971,194.6,194.55,15.76065879]
[1739333932451,3.5971,194.6,194.54,15.76065879]
[1739333933060,138.1,194.59,194.55,15.76065879]
[1739333933245,138.1,194.59,194.56,15.76065879]
[1739333933432,141.6969,194.62,194.56,15.76065879]
[1739333933634,141.6969,194.62,194.57,15.76065879]
[1739333934239,3.6595,194.64,194.6,15.76065879]
[1739333934440,141.7595,194.64,194.6,15.76065879]
[1739333934650,141.7595,194.64,194.59,15.76065879]
[1739333935928,141.7595,194.64,194.58,15.76065879]
[1739333936659,138.163,194.64,194.59,15.76065879]
[1739333937557,141.7594,194.64,194.59,15.76065879]
[1739333938050,3.6594,194.64,194.59,15.76065879]
[1739333940249,3.6594,194.64,194.58,15.76065879]
[1739333941957,0.063,194.64,194.62,15.76065879]
[1739333942161,0.063,194.64,194.61,17.30955879]
[1739333942539,0.063,194.64,194.61,1.5489]
[1739333942771,0.063,194.64,194.54,6.2748]
[1739333942772,15.82365879,194.64,194.57,17.30955879]
[1739333942958,15.82365879,194.64,194.58,13.41184853]
[1739333943258,0.063,194.64,194.58,29.17250732]
[1739333943556,15.76065879,194.61,194.57,1.5489]
[1739333943764,15.76065879,194.58,194.54,6.2748]
[1739333944060,15.76065879,194.55,194.5,6.6213]
[1739333944262,15.76065879,194.54,194.5,6.6213]
[1739333944656,15.76065879,194.55,194.5,6.6213]
[1739333945036,153.86065879,194.56,194.5,6.6213]
[1739333945757,3.598,194.55,194.5,6.6213]
[1739333946073,138.1,194.56,194.52,15.76065879]
[1739333946454,141.698,194.56,194.52,15.76065879]
[1739333946637,141.698,194.56,194.5,22.38195879]
[1739333946841,15.76065879,194.55,194.5,6.6213]
[1739333947341,15.76065879,194.54,194.5,6.6213]
[1739333947763,3.5984,194.53,194.5,6.6213]
[1739333947955,3.5984,194.53,194.48,17.30955879]
[1739333948147,3.5984,194.53,194.49,15.76065879]
[1739333949364,138.1,194.56,194.52,13.41184853]
[1739333949547,3.5978,194.57,194.53,15.76065879]
[1739333949747,3.5978,194.57,194.52,15.76065879]
[1739333950074,3.5978,194.57,194.49,15.76065879]
[1739333950075,15.76065879,194.56,194.49,15.76065879]
[1739333950574,15.76065879,194.56,194.5,15.76065879]
[1739333950877,3.5978,194.57,194.52,29.17250732]
[1739333951054,3.5978,194.57,194.52,13.41184853]
[1739333951258,15.76065879,194.56,194.49,15.76065879]
[1739333951559,15.76065879,194.54,194.49,13.41184853]
[1739333951957,15.76065879,194.53,194.48,1.5489]
[1739333952156,236.36065879,194.52,194.48,1.5489]
[1739333952447,15.76065879,194.51,194.46,0.03]
[1739333952656,138.1,194.5,194.46,0.03]
[1739333952853,153.86065879,194.5,194.46,0.03]
[1739333953448,3.5991,194.49,194.46,0.03]
[1739333955671,138.1,194.48,194.46,0.03]
[1739333955867,153.86065879,194.47,194.46,0.03]
[1739333956070,15.76065879,194.47,194.46,0.03]
[1739333957253,20.0,194.45,194.44,0.03]
[1739333957558,35.76065879,194.45,194.44,0.03]
[1739333958063,39.36045879,194.45,194.44,0.03]
[1739333959476,39.48594879,194.45,194.44,0.03]
[1739333960768,39.36045879,194.45,194.44,0.03]
[1739333960977,23.5998,194.45,194.44,0.03]
[1739333961474,106.0998,194.45,194.44,0.03]
[1739333962175,102.5,194.45,194.44,0.03]
[1739333962372,3.5994,194.48,194.44,15.79065879]
[1739333962750,3.5994,194.48,194.44,0.03]
[1739333962955,19.36005879,194.48,194.44,0.03]
[1739333963270,98.26065879,194.47,194.44,0.03]
[1739333963667,15.76065879,194.45,194.44,0.03]
[1739333963862,20.0,194.43,194.42,0.03]
[1739333964374,23.6002,194.43,194.42,0.03]
[1739333964562,0.12549,194.42,194.37,0.03]
[1739333964748,15.76065879,194.39,194.37,0.03]
[1739333964950,15.76065879,194.4,194.37,0.03]
[1739333965263,15.76065879,194.41,194.37,0.03]
[1739333966068,161.7002,194.43,194.38,15.76065879]
[1739333966666,141.7002,194.43,194.4,15.76065879]
[1739333966980,141.7,194.45,194.42,15.76065879]
[1739333967272,86.0997,194.46,194.43,15.76065879]
[1739333967458,86.0997,194.46,194.39,13.41184853]
[1739333967459,82.5,194.46,194.44,15.76065879]
[1739333967660,3.5995,194.47,194.44,15.79065879]
[1739333967968,0.063,194.47,194.45,15.76065879]
[1739333968553,0.063,194.47,194.44,22.15635879]
[1739333968857,0.063,194.47,194.46,15.76065879]
[1739333969884,0.063,194.47,194.46,29.17250732]
[1739333972377,0.063,194.47,194.46,34.31490732]
[1739333973253,0.063,194.47,194.46,15.76065879]
[1739333973788,0.063,194.47,194.46,29.17250732]
[1739333973957,0.063,194.47,194.46,15.76065879]
[1739333974281,0.063,194.47,194.46,29.17250732]
[1739333975461,0.063,194.47,194.46,29.29799732]
[1739333975773,0.063,194.47,194.46,34.56588732]
[1739333975982,0.063,194.47,194.46,34.81686732]
[1739333976660,0.063,194.47,194.46,29.29799732]
[1739333977573,0.063,194.47,194.46,29.17250732]
[1739333977981,0.063,194.47,194.46,29.29799732]
[1739333978181,0.063,194.47,194.46,29.17250732]
[1739333979476,0.063,194.47,194.46,29.20250732]
[1739333981284,0.063,194.47,194.46,0.03]
[1739333982892,15.82365879,194.47,194.46,0.03]
[1739333983085,19.42315879,194.47,194.46,0.03]
[1739333984059,3.6625,194.47,194.46,0.03]
[1739333984670,23.6625,194.47,194.46,0.03]
[1739333985081,0.063,194.47,194.46,0.03]
[1739333986492,15.82365879,194.47,194.46,0.03]
[1739333986664,35.82365879,194.47,194.46,0.03]
[1739333987684,39.42315879,194.47,194.46,0.03]
[1739333988084,82.5,194.46,194.44,0.0001]
[1739333988289,98.26065879,194.45,194.44,0.0001]
[1739333988793,98.38614879,194.45,194.44,0.0001]
[1739333989173,98.26065879,194.45,194.44,0.0001]
[1739333989378,82.5,194.45,194.44,0.0001]
[1739333989680,101.86045879,194.45,194.44,0.0001]
[1739333989887,19.48594879,194.45,194.44,0.0001]
[1739333990189,35.07143879,194.45,194.44,0.0001]
[1739333990392,19.61143879,194.45,194.44,0.0001]
[1739333990695,35.07143879,194.45,194.44,0.0001]
[1739333992110,19.48594879,194.45,194.44,0.0001]
[1739333992270,19.36045879,194.45,194.44,0.0001]
[1739333992593,19.48594879,194.45,194.44,0.0001]
[1739333994298,20.0,194.43,194.42,0.0001]
[1739333994497,35.88614879,194.43,194.42,0.0001]
[1739333996193,39.48634879,194.43,194.42,0.0001]
[1739333998295,23.6002,194.43,194.42,0.0001]
[1739333998478,3.6002,194.43,194.42,0.0001]
[1739334000198,3.6001,194.44,194.42,15.76075879]
[1739334000408,3.5998,194.46,194.43,15.76065879]
[1739334001108,0.063,194.47,194.45,15.76065879]
[1739334001311,0.063,194.47,194.46,15.76065879]
[1739334001510,0.063,194.47,194.45,15.76065879]
[1739334001726,0.063,194.47,194.44,15.76065879]
[1739334001903,3.6626,194.47,194.43,15.76065879]
[1739334002099,3.6626,194.47,194.42,17.39565879]
[1739334003489,3.6626,194.47,194.43,15.76065879]
[1739334004195,0.063,194.47,194.42,1.635]
[1739334004393,0.063,194.47,194.45,15.76065879]
[1739334004692,0.063,194.47,194.42,17.39565879]
[1739334005403,138.1,194.46,194.42,1.635]
[1739334005606,153.86065879,194.46,194.42,0.0001]
[1739334005910,20.0,194.43,194.42,0.0001]
[1739334006211,15.76065879,194.43,194.42,0.0001]
[1739334006896,19.36085879,194.43,194.42,0.0001]
[1739334007287,3.6002,194.43,194.42,0.0001]
[1739334008112,15.82365879,194.47,194.42,15.76075879]
[1739334008113,138.1,194.46,194.42,15.76075879]
[1739334008315,0.063,194.47,194.45,15.76065879]
[1739334008492,0.063,194.47,194.46,15.76065879]
[1739334008694,0.063,194.47,194.46,35.26300732]
[1739334008894,0.063,194.47,194.46,42.16579732]
[1739334009309,0.063,194.47,194.46,42.29128732]
[1739334009996,8.04413471,194.56,194.48,0.12549]
[1739334010302,8.04413471,194.56,194.55,15.76065879]
[1739334010599,15.76065879,194.61,194.55,15.76065879]
[1739334010600,141.6973,194.59,194.55,15.76065879]
[1739334010806,141.6973,194.59,194.56,15.76065879]
[1739334011006,141.6973,194.59,194.57,15.76065879]
[1739334011197,3.5973,194.59,194.57,15.76065879]
[1739334011604,3.5973,194.59,194.56,15.76065879]
[1739334012130,3.5973,194.59,194.54,15.76065879]
[1739334012813,3.5973,194.59,194.53,15.76065879]
[1739334013900,3.5973,194.59,194.54,15.76065879]
[1739334014419,3.6603,194.59,194.54,15.76065879]
[1739334014796,138.1,194.58,194.54,15.76065879]
[1739334015002,3.5976,194.57,194.54,15.76065879]
[1739334015317,3.5976,194.57,194.53,15.76065879]
[1739334016221,138.1,194.56,194.51,15.76065879]
[1739334016416,138.1,194.56,194.53,15.76065879]
[1739334017019,3.598,194.55,194.52,15.76065879]
[1739334017710,3.598,194.55,194.53,15.76065879]
[1739334018623,3.598,194.55,194.52,15.76065879]
[1739334018924,3.598,194.55,194.51,15.76065879]
[1739334019227,3.598,194.55,194.53,15.76065879]
[1739334019428,3.598,194.55,194.52,15.76065879]
[1739334019606,3.598,194.55,194.51,15.76065879]
[1739334020508,3.598,194.55,194.5,15.76065879]
[1739334020711,220.6,194.54,194.48,15.76065879]
[1739334021108,138.1,194.53,194.48,15.76065879]
[1739334021708,138.1,194.53,194.49,15.76065879]
[1739334021919,138.1,194.53,194.52,15.76065879]
[1739334022721,3.5983,194.54,194.52,15.76065879]
[1739334023031,3.5983,194.54,194.51,15.76065879]
[1739334023617,3.5983,194.54,194.49,15.76065879]
[1739334024010,220.6,194.53,194.47,15.76065879]
[1739334024229,138.1,194.52,194.47,15.76065879]
[1739334024426,3.5987,194.51,194.46,7.7254]
[1739334024615,3.5987,194.51,194.45,15.76065879]
[1739334024927,28.35625879,194.51,194.44,15.76065879]
[1739334026330,28.35625879,194.51,194.47,0.03]
[1739334027632,236.36065879,194.5,194.47,0.03]